Cogmind - Beta 10.1 @@@ ROGUE MODE // 2020.09.19 @ 20:31:14 // Winter2019/RPGLIKE Player: Torako Result: Destroyed by G-34 Mercenary with Small Laser Performance ------------- Evolutions (0) 0 Regions Visited (1) 200 Robots Destroyed (14) 70 Value Destroyed (294) 294 Prototype IDs (0) 0 Alien Tech Used (0) 0 Bonus (0) 0 TOTAL SCORE: 564 Bonus ------- None Cogmind --------- Core Integrity 0/600 Matter 300/300 Energy 214/400 System Corruption 2% Temperature Cool (510) Movement Treading (160) Location -10/Materials Parts ------- > --- POWER (2) -------- Ion Engine Ion Engine > --- PROPULSION (2) --- Light Treads Light Treads > --- UTILITY (2) ------ Heat Sink Heat Sink > --- WEAPON (3) ------- Medium Laser Medium Laser Beam Cannon > --- INVENTORY (0) ---- (None) Peak State ------------ > --- POWER ------------ Ion Engine Ion Engine > --- PROPULSION ------- Light Treads Light Treads > --- UTILITY ---------- Heat Sink Heat Sink > --- WEAPON ----------- Medium Laser Small Laser Beam Cannon > --- INVENTORY -------- (None) [Rating: 9] Favorites ----------- Power Ion Engine Engine Ion Engine Propulsion Light Treads Treads Light Treads Wheel Compact Wheel Utility Heat Sink Device Heat Sink Weapon Small Laser Energy Gun Small Laser Energy Cannon Beam Cannon Build | -11 -10 ------- Run | Scr Mat Slots Evolved 5 | 1 4 Power 1 | . 1 Propulsion 1 | . 1 Utility 1 | . 1 Weapon 2 | 1 1 Parts Attached 14 | 3 11 Power 2 | . 2 Engine 2 | . 2 Core . | . . Reactor . | . . Propulsion 4 | 1 3 Treads 3 | . 3 Leg . | . . Wheel 1 | 1 . Hover . | . . Flight . | . . Utility 2 | . 2 Device 2 | . 2 Storage . | . . Processor . | . . Hackware . | . . Protection . | . . Artifact . | . . Weapon 6 | 2 4 Energy Gun 5 | 2 3 Energy Cannon 1 | . 1 Ballistic Gun . | . . Ballistic Cannon . | . . Launcher . | . . Special Weapon . | . . Impact Weapon . | . . Slashing Weapon . | . . Piercing Weapon . | . . Special Melee Weapon . | . . Unidentified Prototypes . | . . Parts Lost . | . . Power . | . . Propulsion . | . . Utility . | . . Weapon . | . . Highest Loss Streak . | . . Average Slot Usage (%) 90 | . 90 Engine 14 | . 14 Treads 8 | . 8 Wheel 11 | . 11 Device 18 | . 18 Energy Gun 29 | . 29 Energy Cannon 7 | . 7 Naked Turns . | . . Heaviest Build 19 | 3 19 Greatest Support 40 | 16 40 Greatest Overweight (x) 2 | . 2 Average Overweight (x) . | . . Largest Inventory Capacity . | . . Average Capacity . | . . Most Carried . | . . Average Carried . | . . Final Capacity . | . . Final Carried . | . . Class Distribution -------------------- 57% | Mutant 42% | Scavenger-Gunner Dominant Class ---------------- Mutant | -10/Materials Resources | -11 -10 ----------- Run | Scr Mat Matter Collected 340 | 230 110 Remotely . | . . Salvage Created 595 | 87 508 Parts 31 | 3 28 Haulers Intercepted 1 | . 1 Recyclers Shooed . | . . Parts Field Recycled . | . . Retrieved Matter . | . . Parts Self-Destructed . | . . Prevented . | . . Kills | -11 -10 ------- Run | Scr Mat Combat Hostiles Destroyed 10 | . 10 Guns 3 | . 3 Cannons 7 | . 7 Classes Destroyed 6 | 2 4 Worker 1 | . 1 Tunneler 1 | 1 . Hauler 1 | . 1 Recycler 1 | 1 . Swarmer 3 | . 3 Grunt 7 | . 7 Best Kill Streak 4 | 2 4 Combat Bots Only 3 | . 3 Max Kills in Single Turn 1 | 1 1 Gunslinging . | . . Exploded . | . . Melee . | . . Uniques/NPCs Destroyed . | . . Combat | -11 -10 -------- Run | Scr Mat Damage Taken 711 | . 711 Core 601 | . 601 Absorbed by Shields . | . . Redirected to Core 332 | . 332 Core Remaining (%) 100 | 100 . Volleys Fired 37 | 5 32 Largest 3 | 2 3 Hottest 160 | 80 160 Shots Fired 86 | 10 76 Gun 59 | 10 49 Cannon 27 | . 27 Launcher . | . . Special . | . . Kinetic . | . . Thermal 69 | 5 64 Explosive . | . . Electromagnetic 17 | 5 12 Robot Hit Streak 6 | 3 6 Robot Miss Streak 3 | 1 3 Penetration Max . | . . Secondary Targets . | . . Shots Hit Robots 49 | 7 42 Core Hits 21 | 3 18 Critical Hits . | . . Critical Kills . | . . Critical Parts Destroyed . | . . Melee Attacks . | . . Impact . | . . Slashing . | . . Piercing . | . . Sneak Attacks . | . . Combat Hostiles . | . . Follow-up Attacks . | . . Damage Inflicted 620 | 86 534 Guns 290 | 86 204 Cannons 330 | . 330 Explosions . | . . Melee . | . . Ramming . | . . Kinetic . | . . Thermal 530 | 45 485 Explosive . | . . Electromagnetic 90 | 41 49 Impact . | . . Slashing . | . . Piercing . | . . Highest Corruption 2 | . 2 Average Corruption 2 | . 2 Corruption Purged . | . . Effects 6 | . 6 Message Errors 2 | . 2 Heat Flow Errors 2 | . 2 Energy Discharges 2 | . 2 Overload Shots . | . . Overflow Damage . | . . Projectiles . | . . Explosions . | . . Melee . | . . Knockbacks . | . . Impact . | . . Kinetic . | . . Secondary . | . . Self-Inflicted Damage . | . . Shots . | . . Rammed . | . . Targets Rammed . | . . Kicked . | . . Crushed . | . . Highest Temperature 765 | 15 765 Average Temperature 168 | 8 193 Received Heat Transfer 192 | . 192 Effects 16 | . 16 Shutdowns 3 | . 3 Energy Bleed 3 | . 3 Interference 4 | . 4 Matter Decay 1 | . 1 Short Circuit 1 | . 1 Damage (minor) 2 | . 2 Damage (core) 2 | . 2 Siege Activations . | . . Robots Corrupted . | . . Combat Hostiles . | . . Parts Fried . | . . Impact Corruptions . | . . Robots Melted . | . . Combat Hostiles . | . . Parts Melted . | . . Heat Transferred 1248 | 100 1148 Parts Sabotaged . | . . Parts Stolen . | . . Parts Stripped . | . . Power Chain Reactions . | . . Missiles Intercepted . | . . Alert | -11 -10 ------- Run | Scr Mat Peak Influence 323 | 10 323 Initial 6 | . 6 Average 121 | 6 133 Maximum Alert Level 1 | . 1 Low Security (%) 60 | 100 56 Level 1 39 | . 43 Level 2 . | . . Level 3 . | . . Level 4 . | . . Level 5 . | . . High Security . | . . Max Security . | . . Squads Dispatched 4 | . 4 Investigation 2 | . 2 Extermination . | . . Reinforcement 2 | . 2 Assault . | . . Garrison . | . . Intercept . | . . Construction Impeded . | . . Haulers Reinforced . | . . Stealth | -11 -10 --------- Run | Scr Mat Distress Signals 2 | . 2 Communications Jammed . | . . Distress Signals . | . . Times Spotted 13 | . 13 Peak Tracking Total 4 | . 4 Tactical Retreats . | . . Traps | -11 -10 ------- Run | Scr Mat Traps Triggered 1 | . 1 Indirectly . | . . Trap Hack Attempts . | . . Triggered . | . . Disarmed . | . . Reprogrammed . | . . Reused . | . . Traps Extracted . | . . Installed . | . . Triggered . | . . Machines | -11 -10 ---------- Run | Scr Mat Machines Disabled 1 | . 1 Max in Single Turn 1 | . 1 Machines Sabotaged . | . . Garrisons Compromised . | . . Overloaded Fab Kills . | . . Fab Network Shutdowns . | . . Hacking | -11 -10 --------- Run | Scr Mat Machines Accessed 2 | . 2 Terminals 2 | . 2 Fabricators . | . . Repair Stations . | . . Recycling Units . | . . Scanalyzers . | . . Garrison Access . | . . Total Hacks 8 | . 8 Successful 4 | . 4 Failed 4 | . 4 Catastrophic . | . . Database Lockouts . | . . Manual 6 | . 6 Terminals 8 | . 8 Fabricators . | . . Repair Stations . | . . Recycling Units . | . . Scanalyzers . | . . Garrison Access . | . . Terminal Hacks 2 | . 2 Robot Analysis 1 | . 1 Level Access Points 1 | . 1 Fabricator Hacks . | . . Repair Station Hacks . | . . Recycling Unit Hacks . | . . Scanalyzer . | . . Garrison Access Hacks . | . . Unauthorized Hacks 2 | . 2 Terminals 2 | . 2 Botnet 1 | . 1 Search 1 | . 1 Fabricators . | . . Repair Stations . | . . Recycling Units . | . . Scanalyzers . | . . Garrison Access . | . . Data Cores Recovered . | . . Used . | . . Hacking Detections 1 | . 1 Full Trace Events 1 | . 1 Feedback Events . | . . Feedback Blocked . | . . Robot Schematics Acquired . | . . Robots Built . | . . Matter . | . . Time . | . . Total Robot Build Rating . | . . Part Schematics Acquired . | . . Parts Built . | . . Matter . | . . Time . | . . Total Part Build Rating . | . . Parts Repaired . | . . Time . | . . Parts Recycled . | . . Recycled Matter . | . . Retrieved Matter . | . . Retrieved Components . | . . Parts Scanalyzed . | . . Part Schematics Acquired . | . . Parts Damaged . | . . Bothacking | -11 -10 ------------ Run | Scr Mat Used RIF Installer . | . . Robots Hacked . | . . Non-combat . | . . Combat . | . . Robot Hacks Applied . | . . Relay Couplers Released . | . . Robots Rewired . | . . Allies Hacked . | . . Hacks Repelled . | . . Allies | -11 -10 -------- Run | Scr Mat Total Allies . | . . Largest Group . | . . Highest-Rated Group . | . . Highest-Rated Ally . | . . Total Orders . | . . Ally Attacks . | . . Total Damage . | . . Kills . | . . Allies Corrupted . | . . Allies Melted . | . . Intel | -11 -10 ------- Run | Scr Mat Robot Analysis Total 1 | . 1 Derelict Logs Recovered . | . . Drone Launches . | . . Drone Recoveries . | . . Exploration | -11 -10 ------------- Run | Scr Mat Turns Passed 451 | 42 409 Spaces Moved 335 | 32 303 Core 175 | 19 156 Treads 55 | . 55 Legs . | . . Wheels 105 | 13 92 Hover . | . . Flight . | . . Fastest Speed 50 | 50 50 Average Speed 91 | 70 94 Slowest Speed 160 | 100 160 Overloaded Moves . | . . Propulsion Burnouts . | . . Robots Hopped . | . . Cave-ins Triggered . | . . Exploration Rate (%) 27 | 3 52 Regions Visited 1 Branch Regions . Pre-discovered Areas . | . . Known Exits Taken . | . . Unknown Exits Taken 1 | 1 . Scrap Searched . | . . Spaces Dug . | . . Terrain Destroyed . | . . Melee . | . . Projectile . | . . AOE . | . . Terrain Rammed . | . . Walls Destroyed . | . . Machines Disabled . | . . Actions | -11 -10 --------- Run | Scr Mat Total 399 | 39 360 Wait 9 | . 9 Move 334 | 31 303 Hop . | . . Pick Up . | . . Fast Attach 12 | 3 9 Attach . | . . Detach . | . . Swap 2 | . 2 Drop 5 | . 5 Fire 37 | 5 32 Melee . | . . Ram . | . . Kick . | . . Crush . | . . Escape Stasis . | . . Rewire . | . . Trap . | . . Miscellaneous . | . . Route ------- -11/Scrapyard -10/Materials (discovered 4 exits: *Mat x3 / [*Min]) History --------- Turn | Location | Event 1 | -11/Scrapyard | Upgraded with Weapon slot (x1) 14 | -11/Scrapyard | Discovered new exit (range 15) 43 | -11/Scrapyard | Entered Materials 162 | -10/Materials | Discovered new exit (range 4) 227 | -10/Materials | Discovered new exit (range 4) 258 | -10/Materials | Identified exit to Materials 259 | -10/Materials | Upgraded with Weapon slot (x1) 274 | -10/Materials | Upgraded with Utility slot (x1) 284 | -10/Materials | Upgraded with Power slot (x1) 284 | -10/Materials | Upgraded with Propulsion slot (x1) 430 | -10/Materials | Core integrity fell below 50% 451 | -10/Materials | Core integrity fell below 20% 452 | -10/Materials | Destroyed by G-34 Mercenary with Small Laser Last Messages --------------- 00437_ Upgraded: Heat Dissipation (+12) 00440_ G-34 Mercenary destroyed. 00441_ Acquired 10 matter. 00442_ System corrupted: Heat flow error (+277). 00443_ Power failure, Ion Engine shutdown. 00443_ Overheating: Energy bleed (-31). 00443_ K-01 Serf collects debris. 00444_ Overheating: Med. Laser damaged (-12). 00445_ Power failure, Ion Engine shutdown. 00445_ Lgt. Treads permanently disabled. 00445_ Overheating: Short circuit. 00446_ Overheating: System interference. 00446_ Heat Sink temporarily disabled. 00447_ Overheating: Core damaged (-114). 00448_ K-01 Serf collects debris. 00449_ Overheating: Matter decay (-33). 00451_ Overheating: Core damaged (-108). 00451_ K-01 Serf collects debris. 00452_ Overheating: System interference. 00452_ Med. Laser temporarily disabled. Map ----- +----------------------------------------------------+ | ?# = # = """"" #?# ##########????????????????? | | ?# # """ " ### ^ ?????????????? | | ?###### """ + ?????????????? | | ??????# =%= ### ?????????????? | | ??????#####+#####?# ####+## ?????????????? | | ??##????# ##### #????????????????????? | | ?# # ##???????????????????? | | ?# < +???????????????????? | | ?# # ##???????????????????? | | ??####### ###### #######????????????????????? | | ????????#######????# #??????????????????????????? | | ???????????????????# #??????????????????????????? | | ??????????????###### #??????????????????????????? | | ??????????????# ##+######?????????????????????? | | ??????????????# ## T #?????????????????????? | | ??????????????# ## #?????????????????????? | | ??????????????# ## """ #?????????????????????? | | ??????????????# ## """ ### #?????????????????? | | ??????????????# ## """ + #?????????????????? | | ##########????# ## #####?????????????????? | | # !!! #######+######+###############+###?????? | | # !!! # =%?? | | # !!! # ^ *%?? | | #!*! =# %= T ?? | | #/!%= %%+ ###+########g############ ????? | | #%/ # #=%* ## @=k #????????? ??? | | #="T" # < #[[= ## #???????????? ???? | | # """ # # **! ## #?????????????????? | | #[ ##### **% ##!!| ! #?????????????????? | | ##########???# **= ##!! #?????????????????? | | ?????????????# ##!! #?????????????????? | | ?????????????# ## #?????????????????? | | ?????????????######## #?????????????????? | | ????????????????????###########?????????????????? | | ????????????????????????????????????????????????? | | ????????????????????????????????????????????????? | | ????????????????????????????????????????????????? | | ????????????????????????????????????????????????? | | ????????????????????????????????????????????????? | | ????????????????????????????????????????????????? | | ????????????????????????????????????????????????? | | | | | | | | | | | | | | | | | | | +----------------------------------------------------+ Best States ------------- Heat Dissipation 57 Energy Generation 15 Energy Capacity 400 Matter Stores 300 Matter Capacity 300 Sight Range 16 Terrain Scan Density 10 Evasion (%) 50 Recoil Reduction 2 Item Schematics ----------------- None Robot Schematics ------------------ None Fabricated ------------ Nothing Alien Tech Used ----------------- None Achievements -------------- None Challenges ------------ None RPGLIKE | -11 -10 --------- Run | Scr Mat Levels Raised . | . . XP Earned 4310 | 3000 1310 XP Spent 2920 | 500 2420 Upgrades 7 | 1 6 Power Slot 1 | . 1 Propulsion Slot 1 | . 1 Utility Slot 1 | . 1 Weapon Slot 2 | 1 1 Heat Dissipation 2 | . 2 Protomatter Created 8 | . 8 Protomatter Decayed . | . . Game ------ Seed WaveBlastBoosters Manual? 0 Play Time 00:08:15 Cumulative 262.3 hours Start 2020.09.19 @ 20:26:44 End 2020.09.19 @ 20:31:14 Sessions 1 Manual Loads 0 Difficulty Rogue Special Mode Winter2019/RPGLIKE Game No. 266 Rogue 266 Adventurer 0 Explorer 0 Win Type - Total 14 Types 10/0/3/1/0/0/0/0/0 Lore% 82 Gallery% 90 Achievement% 73 Wizard Run 0 Options --------- ASCII 0 Keyboard 1 Movement Numpad Keybinds 0 Fullscreen 1 Font 18/SmallcapsGlow Map View 76x50 Tactical HUD 1 Map Filters NONE Filters NONE Steam 1 RUN: a43face9-e505-4e0e-a7d8-b8dd3faca705